fUSD/lending_fUSD_20250103
["ID","MTS","AMOUNT","RATE_DAILY","PERIOD"]
[347494534,1735876246819,-972.58,9.757e-05,2]
[347494535,1735876246828,-500.0,9.757e-05,2]
[347494536,1735876246837,-1202.35,9.757e-05,2]
[347494537,1735876246847,-500.0,9.757e-05,2]
[347494538,1735876246856,-500.0,9.757e-05,2]
[347494539,1735876246866,-610.23,9.757e-05,2]
[347494540,1735876246876,-500.0,9.757e-05,2]
[347494541,1735876246885,-835.19,9.757e-05,2]
[347494542,1735876246895,-500.0,9.757e-05,2]
[347494543,1735876246904,-611.03,9.757e-05,2]
[347494544,1735876246913,-500.0,9.757e-05,2]
[347494545,1735876246923,-500.0,9.757e-05,2]
[347494546,1735876246932,-500.0,9.757e-05,2]
[347494547,1735876246942,-500.0,9.757e-05,2]
[347494548,1735876246951,-500.0,9.757e-05,2]
[347494550,1735876246961,-500.0,9.757e-05,2]
[347494552,1735876246971,-752.2,9.757e-05,2]
[347494554,1735876246980,-500.0,9.757e-05,2]
[347494556,1735876246989,-500.0,9.757e-05,2]
[347494557,1735876246999,-949.46,9.757e-05,2]
[347494558,1735876247008,-500.0,9.757e-05,2]
[347494559,1735876247017,-500.0,9.757e-05,2]
[347494560,1735876247027,-500.0,9.757e-05,2]
[347494561,1735876247037,-586.88,9.757e-05,2]
[347494562,1735876247047,-617.2,9.757e-05,2]
[347494563,1735876247056,-500.0,9.757e-05,2]
[347494564,1735876247065,-1121.36,9.757e-05,2]
[347494565,1735876247075,-500.0,9.757e-05,2]
[347494566,1735876247084,-500.0,9.757e-05,2]
[347494567,1735876247094,-2315.8,9.757e-05,2]
[347494568,1735876247103,-1175.12,9.757e-05,2]
[347494569,1735876247112,-500.0,9.757e-05,2]
[347494570,1735876247122,-500.0,9.757e-05,2]
[347494571,1735876247131,-1198.93,9.757e-05,2]
[347494572,1735876247140,-500.0,9.757e-05,2]
[347494573,1735876247150,-500.0,9.757e-05,2]
[347494574,1735876247159,-500.0,9.757e-05,2]
[347494575,1735876247168,-500.0,9.757e-05,2]
[347494576,1735876247178,-597.06,9.757e-05,2]
[347494577,1735876247187,-1720.38,9.757e-05,2]
[347494578,1735876247197,-500.0,9.757e-05,2]
[347494579,1735876247206,-500.0,9.757e-05,2]
[347494580,1735876247216,-500.0,9.757e-05,2]
[347494581,1735876247226,-500.0,9.757e-05,2]
[347494582,1735876247236,-500.0,9.757e-05,2]
[347494583,1735876247245,-157.118634,9.757e-05,2]
[347494584,1735876247255,-500.0,9.757e-05,2]
[347494585,1735876247264,-500.0,9.757e-05,2]
[347494586,1735876247274,-500.0,9.757e-05,2]
[347494587,1735876247283,-500.0,9.757e-05,2]
[347494588,1735876247292,-500.0,9.757e-05,2]
[347494589,1735876247302,-500.0,9.757e-05,2]
[347494590,1735876247311,-576.02,9.757e-05,2]
[347494591,1735876247320,-500.0,9.757e-05,2]
[347494592,1735876247330,-1186.1,9.757e-05,2]
[347494593,1735876247339,-520.69,9.757e-05,2]
[347494594,1735876247348,-500.0,9.757e-05,2]
[347494595,1735876247358,-500.0,9.757e-05,2]
[347494596,1735876247367,-500.0,9.757e-05,2]
[347494597,1735876247376,-4071.72,9.757e-05,2]
[347494598,1735876247385,-500.0,9.757e-05,2]
[347494599,1735876247394,-500.0,9.757e-05,2]
[347494600,1735876247403,-475.0,9.757e-05,2]
[347494601,1735876247412,-500.0,9.757e-05,2]
[347494602,1735876247421,-500.0,9.757e-05,2]
[347494603,1735876247431,-1099.02,9.757e-05,2]
[347494604,1735876247440,-500.0,9.757e-05,2]
[347494605,1735876247449,-500.0,9.757e-05,2]
[347494606,1735876247458,-500.0,9.757e-05,2]
[347494607,1735876247468,-500.0,9.757e-05,2]
[347494608,1735876247477,-500.0,9.757e-05,2]
[347494609,1735876247486,-500.0,9.757e-05,2]
[347494610,1735876247495,-2164.92,9.757e-05,2]
[347494611,1735876247504,-689.54,9.757e-05,2]
[347494612,1735876247513,-500.0,9.757e-05,2]
[347494613,1735876247522,-528.25,9.757e-05,2]
[347494614,1735876247532,-500.0,9.757e-05,2]
[347494615,1735876247541,-500.0,9.757e-05,2]
[347494616,1735876247550,-500.0,9.757e-05,2]
[347494617,1735876247560,-500.0,9.757e-05,2]
[347494618,1735876247569,-500.0,9.757e-05,2]
[347494619,1735876247578,-525.70862249,9.757e-05,2]
[347494620,1735876247588,-500.0,9.757e-05,2]
[347494621,1735876247597,-1057.95,9.757e-05,2]
[347494622,1735876247606,-2084.92,9.757e-05,2]
[347494623,1735876247616,-500.0,9.757e-05,2]
[347494624,1735876247626,-500.0,9.757e-05,2]
[347494625,1735876247635,-500.0,9.757e-05,2]
[347494626,1735876247645,-500.0,9.757e-05,2]
[347494627,1735876247659,-2907.36,9.757e-05,2]
[347494628,1735876247668,-785.72,9.757e-05,2]
[347494629,1735876247677,-500.0,9.757e-05,2]
[347494630,1735876247687,-500.0,9.757e-05,2]
[347494631,1735876247698,-500.0,9.757e-05,2]
[347494632,1735876247709,-500.0,9.757e-05,2]
[347494633,1735876247718,-865.89,9.757e-05,2]
[347494634,1735876247729,-500.0,9.757e-05,2]
[347494635,1735876247738,-500.0,9.757e-05,2]
[347494636,1735876247747,-2041.29,9.757e-05,2]
[347494637,1735876247757,-1055.1,9.757e-05,2]
[347494638,1735876247766,-201.93657344,9.757e-05,2]
[347494639,1735876247775,-500.0,9.757e-05,2]
[347494640,1735876247784,-500.0,9.757e-05,2]
[347494641,1735876247794,-500.0,9.757e-05,2]
[347494642,1735876247804,-500.0,9.757e-05,2]
[347494643,1735876247813,-500.0,9.757e-05,2]
[347494644,1735876247822,-500.0,9.757e-05,2]
[347494645,1735876247831,-500.0,9.757e-05,2]
[347494646,1735876247840,-500.0,9.757e-05,2]
[347494647,1735876247850,-500.0,9.757e-05,2]
[347494648,1735876247859,-500.0,9.757e-05,2]
[347494649,1735876247869,-500.0,9.757e-05,2]
[347494650,1735876247878,-500.0,9.757e-05,2]
[347494651,1735876247888,-543.36,9.757e-05,2]
[347494652,1735876247897,-500.0,9.757e-05,2]
[347494653,1735876247908,-1563.64,9.757e-05,2]
[347494654,1735876247918,-3403.56,9.757e-05,2]
[347494655,1735876247927,-500.0,9.757e-05,2]
[347494656,1735876247937,-500.0,9.757e-05,2]
[347494657,1735876247946,-609.24,9.757e-05,2]
[347494658,1735876247955,-500.0,9.757e-05,2]
[347494659,1735876247967,-500.0,9.757e-05,2]
[347494660,1735876247977,-500.0,9.757e-05,2]
[347494661,1735876247987,-500.0,9.757e-05,2]
[347494662,1735876247996,-500.0,9.757e-05,2]
[347494663,1735876248006,-677.34,9.757e-05,2]
[347494664,1735876248015,-500.0,9.757e-05,2]
[347494665,1735876248025,-1713.85,9.757e-05,2]
[347494666,1735876248035,-621.68,9.757e-05,2]
[347494667,1735876248045,-722.92,9.757e-05,2]
[347494668,1735876248055,-2567.0,9.757e-05,2]
[347494669,1735876248064,-500.0,9.757e-05,2]
[347494670,1735876248074,-530.04,9.757e-05,2]
[347494671,1735876248084,-500.0,9.757e-05,2]
[347494672,1735876248093,-577.52017109,9.757e-05,2]
[347494673,1735876248103,-500.0,9.757e-05,2]
[347494674,1735876248112,-500.0,9.757e-05,2]
[347494675,1735876248122,-500.0,9.757e-05,2]
[347494676,1735876248131,-500.0,9.757e-05,2]
[347494677,1735876248141,-589.52,9.757e-05,2]
[347494678,1735876248151,-589.52,9.757e-05,2]
[347494679,1735876248376,-544.55,9.757e-05,2]
[347494680,1735876248386,-500.0,9.757e-05,2]
[347494681,1735876248396,-500.0,9.757e-05,2]
[347494682,1735876248405,-500.0,9.757e-05,2]
[347494683,1735876248414,-1560.84,9.757e-05,2]
[347494684,1735876248424,-964.61,9.757e-05,2]
[347494685,1735876248434,-712.34,9.757e-05,2]
[347494686,1735876248443,-500.0,9.757e-05,2]
[347494687,1735876248453,-500.0,9.757e-05,2]
[347494688,1735876248464,-500.0,9.757e-05,2]
[347494689,1735876248473,-500.0,9.757e-05,2]
[347494690,1735876248483,-500.0,9.757e-05,2]
[347494691,1735876248492,-1943.44,9.757e-05,2]
[347494692,1735876248501,-1339.52,9.757e-05,2]
[347494693,1735876248511,-980.66,9.757e-05,2]
[347494694,1735876248520,-300.84530851,9.757e-05,2]
[347494695,1735876248530,-500.0,9.757e-05,2]
[347494696,1735876248540,-3045.89,9.757e-05,2]
[347494697,1735876248549,-500.0,9.757e-05,2]
[347494698,1735876248559,-500.0,9.757e-05,2]
[347494699,1735876248570,-500.0,9.757e-05,2]
[347494700,1735876248579,-368.7535866,9.757e-05,2]
[347494701,1735876248589,-500.0,9.757e-05,2]
[347494702,1735876248599,-500.0,9.757e-05,2]
[347494703,1735876248608,-1710.6,9.757e-05,2]
[347494704,1735876248618,-500.0,9.757e-05,2]
[347494705,1735876248628,-500.0,9.757e-05,2]
[347494706,1735876248637,-500.0,9.757e-05,2]
[347494707,1735876248647,-500.0,9.757e-05,2]
[347494708,1735876248661,-1446.86,9.757e-05,2]
[347494709,1735876248671,-2269.81,9.757e-05,2]
[347494710,1735876248680,-500.0,9.757e-05,2]
[347494711,1735876248689,-4893.93,9.757e-05,2]
[347494712,1735876248700,-500.0,9.757e-05,2]
[347494713,1735876248709,-500.0,9.757e-05,2]
[347494714,1735876248719,-1172.09,9.757e-05,2]
[347494715,1735876248728,-500.0,9.757e-05,2]
[347494716,1735876248739,-500.0,9.757e-05,2]
[347494717,1735876248749,-1911.4,9.757e-05,2]
[347494718,1735876248758,-1626.09,9.757e-05,2]
[347494719,1735876248768,-500.0,9.757e-05,2]
[347494720,1735876248777,-500.0,9.757e-05,2]
[347494721,1735876248787,-500.0,9.757e-05,2]
[347494722,1735876248797,-500.0,9.757e-05,2]
[347494723,1735876248806,-448.92773476,9.757e-05,2]
[347494724,1735876248815,-500.0,9.757e-05,2]
[347494725,1735876248826,-500.0,9.757e-05,2]
[347494726,1735876248835,-500.0,9.757e-05,2]
[347494727,1735876248844,-500.0,9.757e-05,2]
[347494728,1735876248853,-2892.94,9.757e-05,2]
[347494729,1735876248862,-500.0,9.757e-05,2]
[347494730,1735876248872,-500.0,9.757e-05,2]
[347494731,1735876248881,-500.0,9.757e-05,2]
[347494732,1735876248890,-1985.54,9.757e-05,2]
[347494733,1735876248899,-500.0,9.757e-05,2]
[347494734,1735876248909,-500.0,9.757e-05,2]
[347494735,1735876248919,-904.97,9.757e-05,2]
[347494736,1735876248928,-739.02,9.757e-05,2]
[347494737,1735876248937,-500.0,9.757e-05,2]
[347494738,1735876248947,-1024.01,9.757e-05,2]
[347494739,1735876248956,-500.0,9.757e-05,2]
[347494740,1735876248966,-500.0,9.757e-05,2]
[347494741,1735876248976,-500.0,9.757e-05,2]
[347494742,1735876248985,-500.0,9.757e-05,2]
[347494743,1735876248994,-9153.64,9.757e-05,2]
[347494744,1735876249003,-500.0,9.757e-05,2]
[347494745,1735876249012,-500.0,9.757e-05,2]
[347494746,1735876249022,-500.0,9.757e-05,2]
[347494747,1735876249032,-1603.17,9.757e-05,2]
[347494748,1735876249041,-500.0,9.757e-05,2]
[347494749,1735876249051,-3159.85,9.757e-05,2]
[347494750,1735876249060,-500.0,9.757e-05,2]
[347494751,1735876249070,-500.0,9.757e-05,2]
[347494752,1735876249079,-1714.66,9.757e-05,2]
[347494753,1735876249088,-1086.89,9.757e-05,2]
[347494754,1735876249098,-1856.48,9.757e-05,2]
[347494755,1735876249107,-500.0,9.757e-05,2]
[347494756,1735876249116,-500.0,9.757e-05,2]
[347494757,1735876249126,-2014.37,9.757e-05,2]
[347494758,1735876249135,-500.0,9.757e-05,2]
[347494759,1735876249144,-1550.94,9.757e-05,2]
[347494760,1735876249154,-6759.4,9.757e-05,2]
[347494761,1735876249163,-1101.22,9.757e-05,2]
[347494762,1735876249173,-500.0,9.757e-05,2]
[347494763,1735876249182,-1098.95,9.757e-05,2]
[347494764,1735876249192,-500.0,9.757e-05,2]
[347494765,1735876249202,-1819.4,9.757e-05,2]
[347494766,1735876249211,-500.0,9.757e-05,2]
[347494767,1735876249221,-1722.91,9.757e-05,2]
[347494768,1735876249231,-500.0,9.757e-05,2]
[347494769,1735876249240,-1034.49,9.757e-05,2]
[347494770,1735876249249,-500.0,9.757e-05,2]
[347494771,1735876249259,-500.0,9.757e-05,2]
[347494772,1735876249268,-500.0,9.757e-05,2]
[347494773,1735876249277,-500.0,9.757e-05,2]
[347494774,1735876249287,-7938.29,9.757e-05,2]
[347494775,1735876249296,-500.0,9.757e-05,2]
[347494776,1735876249306,-3118.18,9.757e-05,2]
[347494777,1735876249315,-707.02,9.757e-05,2]
[347494778,1735876249325,-500.0,9.757e-05,2]
[347494779,1735876249334,-1950.72,9.757e-05,2]
[347494780,1735876249344,-500.0,9.757e-05,2]
[347494781,1735876249353,-500.0,9.757e-05,2]
[347494782,1735876249363,-500.0,9.757e-05,2]
[347494783,1735876249373,-500.0,9.757e-05,2]
[347494784,1735876249382,-500.0,9.757e-05,2]
[347494785,1735876249393,-500.0,9.757e-05,2]
[347494786,1735876249402,-500.0,9.757e-05,2]
[347494787,1735876249411,-1718.29,9.757e-05,2]
[347494788,1735876249421,-1380.76,9.757e-05,2]
[347494789,1735876249430,-500.0,9.757e-05,2]
[347494790,1735876249440,-500.0,9.757e-05,2]
[347494791,1735876249449,-8149.91,9.757e-05,2]
[347494792,1735876249459,-500.0,9.757e-05,2]
[347494793,1735876249470,-500.0,9.757e-05,2]
[347494794,1735876249480,-500.0,9.757e-05,2]
[347494795,1735876249490,-2930.92,9.757e-05,2]
[347494796,1735876249500,-1571.7,9.757e-05,2]
[347494797,1735876249509,-669.99,9.757e-05,2]
[347494798,1735876249518,-500.0,9.757e-05,2]
[347494799,1735876249527,-500.0,9.757e-05,2]
[347494800,1735876249537,-2064.88,9.757e-05,2]
[347494801,1735876249546,-500.0,9.757e-05,2]
[347494802,1735876249556,-500.0,9.757e-05,2]
[347494803,1735876249566,-566.63,9.757e-05,2]
[347494804,1735876249575,-1191.44,9.757e-05,2]
[347494805,1735876249585,-2608.12,9.757e-05,2]
[347494806,1735876249594,-723.61,9.757e-05,2]
[347494807,1735876249603,-500.0,9.757e-05,2]
[347494808,1735876249613,-1465.34,9.757e-05,2]
[347494809,1735876249622,-500.0,9.757e-05,2]
[347494810,1735876249632,-2004.17,9.757e-05,2]
[347494811,1735876249642,-500.0,9.757e-05,2]
[347494812,1735876249654,-710.01,9.757e-05,2]
[347494813,1735876249664,-500.0,9.757e-05,2]
[347494814,1735876249673,-500.0,9.757e-05,2]
[347494815,1735876249683,-823.4,9.757e-05,2]
[347494816,1735876249692,-639.67,9.757e-05,2]
[347494817,1735876249703,-750.46,9.757e-05,2]
[347494818,1735876249713,-500.0,9.757e-05,2]
[347494819,1735876249723,-500.0,9.757e-05,2]
[347494820,1735876249733,-500.0,9.757e-05,2]
[347494821,1735876249743,-1584.4,9.757e-05,2]
[347494822,1735876249752,-500.0,9.757e-05,2]
[347494823,1735876249762,-1428.73,9.757e-05,2]
[347494824,1735876249772,-700.45,9.757e-05,2]
[347494825,1735876249781,-2823.9,9.757e-05,2]
[347494826,1735876249791,-500.0,9.757e-05,2]
[347494827,1735876249800,-500.0,9.757e-05,2]
[347494828,1735876249811,-1793.91,9.757e-05,2]
[347494829,1735876249821,-1109.36,9.757e-05,2]
[347494830,1735876249830,-500.0,9.757e-05,2]
[347494831,1735876249840,-744.14,9.757e-05,2]
[347494832,1735876249849,-500.0,9.757e-05,2]
[347494833,1735876249859,-500.0,9.757e-05,2]
[347494834,1735876249869,-500.0,9.757e-05,2]
[347494835,1735876249878,-1087.61,9.757e-05,2]
[347494836,1735876249887,-797.42,9.757e-05,2]
[347494837,1735876249897,-1773.43,9.757e-05,2]
[347494838,1735876249906,-508.33,9.757e-05,2]
[347494839,1735876249915,-500.0,9.757e-05,2]
[347494840,1735876249925,-500.0,9.757e-05,2]
[347494841,1735876249935,-6060.07,9.757e-05,2]
[347494842,1735876249944,-500.0,9.757e-05,2]
[347494843,1735876249954,-1205.42,9.757e-05,2]
[347494844,1735876249963,-500.0,9.757e-05,2]
[347494845,1735876249974,-500.0,9.757e-05,2]
[347494846,1735876249985,-500.0,9.757e-05,2]
[347494847,1735876249994,-500.0,9.757e-05,2]
[347494848,1735876250003,-651.18,9.757e-05,2]
[347494849,1735876250012,-500.0,9.757e-05,2]
[347494850,1735876250022,-1640.2,9.757e-05,2]
[347494851,1735876250032,-1769.83,9.757e-05,2]
[347494852,1735876250042,-944.3,9.757e-05,2]
[347494853,1735876250052,-632.76,9.757e-05,2]
[347494854,1735876250062,-948.12,9.757e-05,2]
[347494855,1735876250071,-533.84,9.757e-05,2]
[347494856,1735876250082,-500.0,9.757e-05,2]
[347494857,1735876250091,-500.0,9.757e-05,2]
[347494858,1735876250101,-2239.33,9.757e-05,2]
[347494859,1735876250110,-793.39,9.757e-05,2]
[347494860,1735876250120,-500.0,9.757e-05,2]
[347494861,1735876250129,-1585.6,9.757e-05,2]
[347494862,1735876250139,-1200.54,9.757e-05,2]
[347494863,1735876250148,-1312.34,9.757e-05,2]
[347494864,1735876250157,-500.0,9.757e-05,2]
[347494865,1735876250166,-1482.38,9.757e-05,2]
[347494866,1735876250176,-500.0,9.757e-05,2]
[347494867,1735876250185,-12806.78,9.757e-05,2]
[347494868,1735876250195,-500.0,9.757e-05,2]
[347494869,1735876250204,-500.0,9.757e-05,2]
[347494870,1735876250215,-500.0,9.757e-05,2]
[347494871,1735876250225,-692.72,9.757e-05,2]
[347494872,1735876250234,-500.0,9.757e-05,2]
[347494873,1735876250244,-500.0,9.757e-05,2]
[347494874,1735876250253,-2360.54,9.757e-05,2]
[347494875,1735876250263,-2040.53,9.757e-05,2]
[347494876,1735876250273,-500.0,9.757e-05,2]
[347494877,1735876250282,-500.0,9.757e-05,2]
[347494878,1735876250291,-500.0,9.757e-05,2]
[347494879,1735876250300,-500.0,9.757e-05,2]
[347494880,1735876250310,-500.0,9.757e-05,2]
[347494881,1735876250319,-530.06,9.757e-05,2]
[347494882,1735876250328,-3058.93,9.757e-05,2]
[347494883,1735876250338,-500.0,9.757e-05,2]
[347494884,1735876250349,-500.0,9.757e-05,2]
[347494885,1735876250360,-500.0,9.757e-05,2]
[347494886,1735876250370,-500.0,9.757e-05,2]
[347494887,1735876250379,-500.0,9.757e-05,2]
[347494888,1735876250389,-2151.45,9.757e-05,2]
[347494889,1735876250399,-500.0,9.757e-05,2]
[347494890,1735876250409,-3520.17,9.757e-05,2]
[347494891,1735876250419,-500.0,9.757e-05,2]
[347494892,1735876250429,-500.0,9.757e-05,2]
[347494893,1735876250439,-500.0,9.757e-05,2]
[347494894,1735876250450,-500.0,9.757e-05,2]
[347494895,1735876250460,-500.0,9.757e-05,2]
[347494896,1735876250470,-500.0,9.757e-05,2]
[347494897,1735876250480,-500.0,9.757e-05,2]
[347494898,1735876250489,-620.74,9.757e-05,2]
[347494899,1735876250499,-830.46,9.757e-05,2]
[347494900,1735876250508,-500.0,9.757e-05,2]
[347494901,1735876250517,-500.0,9.757e-05,2]
[347494902,1735876250527,-500.0,9.757e-05,2]
[347494903,1735876250536,-1031.52,9.757e-05,2]
[347494904,1735876250545,-1064.25,9.757e-05,2]
[347494905,1735876250554,-500.0,9.757e-05,2]
[347494906,1735876250563,-500.0,9.757e-05,2]
[347494907,1735876250572,-401.71895686,9.757e-05,2]
[347494908,1735876250581,-3036.44,9.757e-05,2]
[347494909,1735876250590,-500.65614294,9.757e-05,2]
[347494910,1735876250599,-500.0,9.757e-05,2]
[347494911,1735876250609,-527.74,9.757e-05,2]
[347494912,1735876250618,-1696.95,9.757e-05,2]
[347494913,1735876250627,-500.0,9.757e-05,2]
[347494914,1735876250636,-857.71,9.757e-05,2]
[347494915,1735876250645,-500.0,9.757e-05,2]
[347494916,1735876250659,-500.0,9.757e-05,2]
[347494917,1735876250669,-2010.69,9.757e-05,2]
[347494918,1735876250678,-500.0,9.757e-05,2]
[347494919,1735876250688,-655.98,9.757e-05,2]
[347494920,1735876250699,-1589.63,9.757e-05,2]
[347494921,1735876250708,-500.0,9.757e-05,2]
[347494922,1735876250718,-6285.75,9.757e-05,2]
[347494923,1735876250728,-508.21982391,9.757e-05,2]
[347494924,1735876250738,-500.0,9.757e-05,2]
[347494925,1735876250748,-500.0,9.757e-05,2]
[347494926,1735876250757,-1410.23,9.757e-05,2]
[347494927,1735876250766,-500.0,9.757e-05,2]
[347494928,1735876250776,-500.0,9.757e-05,2]
[347494929,1735876250786,-500.0,9.757e-05,2]
[347494930,1735876250795,-1929.39,9.757e-05,2]
[347494931,1735876250804,-2151.43,9.757e-05,2]
[347494932,1735876250814,-2048.5,9.757e-05,2]
[347494933,1735876250823,-1343.77,9.757e-05,2]
[347494934,1735876250833,-711.01,9.757e-05,2]
[347494935,1735876250842,-967.05,9.757e-05,2]
[347494936,1735876250852,-3886.82,9.757e-05,2]
[347494937,1735876250862,-3007.92,9.757e-05,2]
[347494938,1735876250871,-500.0,9.757e-05,2]
[347494939,1735876250882,-500.0,9.757e-05,2]
[347494940,1735876250892,-2495.95,9.757e-05,2]
[347494941,1735876250902,-856.13,9.757e-05,2]
[347494942,1735876250911,-500.0,9.757e-05,2]
[347494943,1735876250920,-500.0,9.757e-05,2]
[347494944,1735876250929,-500.0,9.757e-05,2]
[347494945,1735876250938,-5873.64,9.757e-05,2]
[347494946,1735876250947,-500.0,9.757e-05,2]
[347494947,1735876250958,-500.0,9.757e-05,2]
[347494948,1735876250967,-551.59,9.757e-05,2]
[347494949,1735876250977,-500.0,9.757e-05,2]
[347494950,1735876250986,-3840.24,9.757e-05,2]
[347494951,1735876250995,-500.0,9.757e-05,2]
[347494952,1735876251005,-500.0,9.757e-05,2]
[347494953,1735876251014,-576.03671203,9.758e-05,2]
[347494954,1735876251025,-500.0,9.758e-05,2]
[347494955,1735876251034,-500.0,9.758e-05,2]
[347494956,1735876251044,-500.0,9.758e-05,2]
[347494957,1735876251053,-500.0,9.758e-05,2]
[347494958,1735876251062,-500.0,9.758e-05,2]
[347494959,1735876251071,-500.0,9.758e-05,2]
[347494960,1735876251082,-500.0,9.758e-05,2]
[347494961,1735876251092,-500.0,9.758e-05,2]
[347494962,1735876251101,-500.0,9.758e-05,2]
[347494963,1735876251111,-500.0,9.758e-05,2]
[347494964,1735876251121,-500.0,9.758e-05,2]
[347494965,1735876251131,-500.0,9.758e-05,2]
[347494966,1735876251140,-500.0,9.758e-05,2]
[347494967,1735876251150,-500.0,9.758e-05,2]
[347494968,1735876251160,-500.0,9.758e-05,2]
[347494969,1735876251170,-500.0,9.758e-05,2]
[347494970,1735876251179,-500.0,9.758e-05,2]
[347494971,1735876251189,-500.0,9.758e-05,2]
[347494972,1735876251198,-500.0,9.758e-05,2]
[347494973,1735876251208,-500.0,9.758e-05,2]
[347494974,1735876251218,-500.0,9.758e-05,2]
[347494975,1735876251227,-500.0,9.758e-05,2]
[347494976,1735876251237,-500.0,9.758e-05,2]
[347494977,1735876251248,-500.0,9.758e-05,2]
[347494978,1735876251258,-500.0,9.758e-05,2]
[347494979,1735876251268,-325.97428565,9.758e-05,2]
[347494980,1735876251279,-500.0,9.758e-05,2]
[347494981,1735876251288,-500.0,9.758e-05,2]
[347494982,1735876251298,-500.0,9.758e-05,2]
[347494983,1735876251308,-529.74288713,9.758e-05,2]
[347494984,1735876251318,-500.75831626,9.758e-05,2]
[347494985,1735876251329,-500.0,9.758e-05,2]
[347494986,1735876251338,-500.0,9.758e-05,2]
[347494987,1735876251583,-500.0,9.758e-05,2]
[347494988,1735876251593,-255.08817301,9.758e-05,2]
[347494989,1735876251603,-500.0,9.758e-05,2]
[347494990,1735876251613,-546.09299564,9.758e-05,2]
[347494991,1735876251622,-500.0,9.758e-05,2]
[347494992,1735876251632,-500.0,9.758e-05,2]
[347494993,1735876251643,-500.0,9.758e-05,2]
[347494994,1735876251652,-550.30480929,9.758e-05,2]
[347494995,1735876251663,-500.77609637,9.758e-05,2]
[347494996,1735876251673,-500.0,9.758e-05,2]
[347494997,1735876251682,-500.0,9.758e-05,2]
[347494998,1735876251693,-500.0,9.758e-05,2]
[347494999,1735876251702,-500.0,9.758e-05,2]
[347495000,1735876251713,-500.0,9.758e-05,2]
[347495001,1735876251722,-500.0,9.758e-05,2]
[347495002,1735876251732,-500.0,9.758e-05,2]
[347495003,1735876251742,-500.0,9.758e-05,2]
[347495004,1735876251751,-500.0,9.758e-05,2]
[347495005,1735876251761,-500.0,9.758e-05,2]
[347495006,1735876251771,-500.0,9.758e-05,2]
[347495007,1735876251781,-500.0,9.758e-05,2]
[347495008,1735876251790,-500.0,9.758e-05,2]
[347495009,1735876251800,-500.0,9.758e-05,2]
[347495010,1735876251809,-500.0,9.758e-05,2]
[347495011,1735876251819,-500.0,9.758e-05,2]
[347495012,1735876251829,-500.0,9.758e-05,2]
[347495013,1735876251839,-500.0,9.758e-05,2]
[347495014,1735876251849,-500.0,9.758e-05,2]
[347495015,1735876251859,-500.0,9.758e-05,2]
[347495016,1735876251868,-500.0,9.758e-05,2]
[347495017,1735876251877,-500.0,9.758e-05,2]
[347495018,1735876251887,-500.0,9.758e-05,2]
[347495019,1735876251897,-500.0,9.758e-05,2]
[347495020,1735876251907,-500.0,9.758e-05,2]
[347495021,1735876251917,-443.65752795,9.758e-05,2]
[347495022,1735876251927,-500.0,9.758e-05,2]
[347495023,1735876251937,-500.0,9.758e-05,2]
[347495024,1735876251946,-500.0,9.758e-05,2]
[347495025,1735876251956,-500.0,9.758e-05,2]
[347495026,1735876251966,-500.0,9.758e-05,2]
[347495027,1735876251976,-500.0,9.758e-05,2]
[347495028,1735876251985,-500.0,9.758e-05,2]
[347495029,1735876251995,-632.04001213,9.758e-05,2]
[347495030,1735876252006,-500.0,9.758e-05,2]
[347495031,1735876252015,-500.0,9.758e-05,2]
[347495032,1735876252025,-500.0,9.758e-05,2]
[347495033,1735876252035,-500.0,9.758e-05,2]
[347495034,1735876252045,-500.0,9.758e-05,2]
[347495035,1735876252054,-377.4103857,9.758e-05,2]
[347495036,1735876252064,-500.0,9.758e-05,2]
[347495037,1735876252073,-500.0,9.758e-05,2]